[Event "Titled Tuesday Blitz March 08 Early 2022"]
[White "Mikhailov, Viacheslav"]
[Black "Molina, Roberto Junio Brito"]
[WhiteFideId "4187369"]
[BlackFideId "2109450"]
[WhiteElo "2381"]
[BlackElo "2432"]
[Result "1-0"]
[Round "10"]
[TimeControl "180+1"]
[Date "2022.03.08"]
[WhiteClock "0:00:08"]
[BlackClock "0:00:17"]

1. Nf3 {[%clk 0:03:00]}  d5 {[%clk 0:03:00]} 2. g3 {[%clk 0:03:00]}  Bg4 {[%clk 0:02:59]} 3. Bg2 {[%clk 0:03:00]}  Nd7 {[%clk 0:02:58]} 4. d4 {[%clk 0:03:00]}  c6 {[%clk 0:02:58]} 5. O-O {[%clk 0:03:00]}  e6 {[%clk 0:02:58]} 6. c4 {[%clk 0:03:00]}  Ngf6 {[%clk 0:02:57]} 7. Nc3 {[%clk 0:03:00]}  Be7 {[%clk 0:02:57]} 8. Bf4 {[%clk 0:03:00]}  O-O {[%clk 0:02:57]} 9. h3 {[%clk 0:03:00]}  Bh5 {[%clk 0:02:56]} 10. g4 {[%clk 0:03:01]}  Bg6 {[%clk 0:02:57]} 11. Qb3 {[%clk 0:03:02]}  Qb6 {[%clk 0:02:56]} 12. c5 {[%clk 0:03:02]}  Qxb3 {[%clk 0:02:56]} 13. axb3 {[%clk 0:03:03]}  Ne4 {[%clk 0:02:55]} 14. b4 {[%clk 0:03:02]}  a6 {[%clk 0:02:53]} 15. Rfd1 {[%clk 0:02:57]}  f6 {[%clk 0:02:48]} 16. Bh2 {[%clk 0:02:52]}  Nxc3 {[%clk 0:02:44]} 17. bxc3 {[%clk 0:02:52]}  Be4 {[%clk 0:02:45]} 18. Nd2 {[%clk 0:02:47]}  Bxg2 {[%clk 0:02:44]} 19. Kxg2 {[%clk 0:02:48]}  f5 {[%clk 0:02:42]} 20. Nb3 {[%clk 0:02:47]}  fxg4 {[%clk 0:02:19]} 21. hxg4 {[%clk 0:02:46]}  Bh4 {[%clk 0:02:19]} 22. f3 {[%clk 0:02:44]}  Bd8 {[%clk 0:02:17]} 23. Ra2 {[%clk 0:02:28]}  Rc8 {[%clk 0:02:16]} 24. Rb1 {[%clk 0:02:26]}  Bc7 {[%clk 0:02:15]} 25. Bxc7 {[%clk 0:02:15]}  Rxc7 {[%clk 0:02:16]} 26. Na5 {[%clk 0:02:05]}  e5 {[%clk 0:02:16]} 27. Rd2 {[%clk 0:02:00]}  Re8 {[%clk 0:02:14]} 28. c4 {[%clk 0:01:55]}  dxc4 {[%clk 0:02:13]} 29. Nxc4 {[%clk 0:01:56]}  exd4 {[%clk 0:02:13]} 30. Kf2 {[%clk 0:01:53]}  Nf6 {[%clk 0:01:44]} 31. Rxd4 {[%clk 0:01:52]}  Rce7 {[%clk 0:01:44]} 32. e4 {[%clk 0:01:49]}  Rf8 {[%clk 0:01:42]} 33. Kg3 {[%clk 0:01:46]}  Kf7 {[%clk 0:01:24]} 34. Nd6+ {[%clk 0:01:44]}  Ke6 {[%clk 0:01:23]} 35. Nf5 {[%clk 0:01:43]}  Rc7 {[%clk 0:01:21]} 36. Rbd1 {[%clk 0:01:33]}  g6 {[%clk 0:01:20]} 37. Rd6+ {[%clk 0:01:27]}  Kf7 {[%clk 0:01:21]} 38. Nh6+ {[%clk 0:01:20]}  Ke7 {[%clk 0:01:18]} 39. g5 {[%clk 0:01:12]}  Nh5+ {[%clk 0:01:17]} 40. Kf2 {[%clk 0:01:13]}  Nf4 {[%clk 0:01:14]} 41. Ng4 {[%clk 0:01:09]}  Ne6 {[%clk 0:01:13]} 42. Nf6 {[%clk 0:00:41]}  Nxg5 {[%clk 0:01:13]} 43. e5 {[%clk 0:00:42]}  Nf7 {[%clk 0:00:31]} 44. Nxh7 {[%clk 0:00:40]}  Rh8 {[%clk 0:00:21]} 45. e6 {[%clk 0:00:28]}  Rxh7 {[%clk 0:00:16]} 46. exf7 {[%clk 0:00:29]}  Kxf7 {[%clk 0:00:16]} 47. f4 {[%clk 0:00:24]}  Re7 {[%clk 0:00:17]} 48. Kf3 {[%clk 0:00:23]}  Rh3+ {[%clk 0:00:17]} 49. Kg4 {[%clk 0:00:23]}  Rb3 {[%clk 0:00:17]} 50. R1d4 {[%clk 0:00:21]}  Rbe3 {[%clk 0:00:17]} 51. Rd7 {[%clk 0:00:11]}  Rxd7 {[%clk 0:00:16]} 52. Rxd7+ {[%clk 0:00:10]}  Re7 {[%clk 0:00:17]} 53. Rd8 {[%clk 0:00:10]}  Ke6 {[%clk 0:00:17]} 54. Rd6+ {[%clk 0:00:10]}  Kf7 {[%clk 0:00:17]} 55. Kg5 {[%clk 0:00:10]}  Re4 {[%clk 0:00:18]} 56. Rd7+ {[%clk 0:00:10]}  Ke6 {[%clk 0:00:18]} 57. Rxb7 {[%clk 0:00:08]}  Re1 {[%clk 0:00:18]} 58. Kxg6 {[%clk 0:00:07]}  Rg1+ {[%clk 0:00:18]} 59. Kh5 {[%clk 0:00:08]}  Kf5 {[%clk 0:00:18]} 60. Rf7+ {[%clk 0:00:08]}  Ke6 {[%clk 0:00:19]} 61. Rc7 {[%clk 0:00:08]}  Kf5 {[%clk 0:00:19]} 62. Kh6 {[%clk 0:00:08]}  Rg6+ {[%clk 0:00:19]} 63. Kh7 {[%clk 0:00:09]}  Re6 {[%clk 0:00:20]} 64. Rf7+ {[%clk 0:00:08]}  Ke4 {[%clk 0:00:20]} 65. f5 {[%clk 0:00:08]}  Re8 {[%clk 0:00:20]} 66. f6 {[%clk 0:00:08]}  Kf5 {[%clk 0:00:21]} 67. Kg7 {[%clk 0:00:07]}  Rb8 {[%clk 0:00:19]} 68. Rc7 {[%clk 0:00:08]}  Rxb4 {[%clk 0:00:15]} 69. f7 {[%clk 0:00:08]}  Rg4+ {[%clk 0:00:16]} 70. Kh8 {[%clk 0:00:07]}  Rh4+ {[%clk 0:00:16]} 71. Kg8 {[%clk 0:00:07]}  Rg4+ {[%clk 0:00:17]} 72. Kf8 {[%clk 0:00:08]}  Rg6 {[%clk 0:00:16]} 73. Ke8 {[%clk 0:00:08]}  Re6+ {[%clk 0:00:17]} 74. Re7 {[%clk 0:00:08]} 1-0


[Site "https://www.chess.com"]

[Event "Titled Tuesday Blitz March 08 Early 2022"]
[White "Miszler, Levente"]
[Black "Zaichenko, Daria"]
[WhiteFideId "763276"]
[BlackFideId "4197453"]
[WhiteElo "1966"]
[BlackElo "2039"]
[Result "1-0"]
[Round "10"]
[TimeControl "180+1"]
[Date "2022.03.09"]
[WhiteClock "0:00:05"]
[BlackClock "0:00:06"]

1. Nf3 {[%clk 0:03:00]}  Nf6 {[%clk 0:02:59]} 2. c4 {[%clk 0:03:00]}  e6 {[%clk 0:02:59]} 3. g3 {[%clk 0:03:00]}  d5 {[%clk 0:02:59]} 4. Bg2 {[%clk 0:03:00]}  Be7 {[%clk 0:03:00]} 5. O-O {[%clk 0:02:56]}  O-O {[%clk 0:03:00]} 6. b3 {[%clk 0:02:52]}  c5 {[%clk 0:02:58]} 7. Bb2 {[%clk 0:02:38]}  d4 {[%clk 0:02:56]} 8. e3 {[%clk 0:02:20]}  dxe3 {[%clk 0:02:55]} 9. fxe3 {[%clk 0:02:19]}  Nc6 {[%clk 0:02:55]} 10. d4 {[%clk 0:02:18]}  b6 {[%clk 0:02:49]} 11. Ne5 {[%clk 0:01:49]}  Nxe5 {[%clk 0:02:44]} 12. Bxa8 {[%clk 0:01:48]}  Neg4 {[%clk 0:02:33]} 13. Qe2 {[%clk 0:01:44]}  cxd4 {[%clk 0:02:27]} 14. exd4 {[%clk 0:01:45]}  e5 {[%clk 0:02:17]} 15. dxe5 {[%clk 0:01:38]}  Bc5+ {[%clk 0:02:16]} 16. Kh1 {[%clk 0:01:32]}  Nf2+ {[%clk 0:02:07]} 17. Rxf2 {[%clk 0:01:32]}  Bxf2 {[%clk 0:02:06]} 18. Qxf2 {[%clk 0:01:33]}  Qd1+ {[%clk 0:02:00]} 19. Qg1 {[%clk 0:01:31]}  Qe2 {[%clk 0:01:56]} 20. Bd4 {[%clk 0:01:12]}  Ne4 {[%clk 0:01:29]} 21. Nc3 {[%clk 0:01:05]}  Nxc3 {[%clk 0:01:15]} 22. Bxc3 {[%clk 0:01:06]}  Bg4 {[%clk 0:01:14]} 23. Bg2 {[%clk 0:00:53]}  Rd8 {[%clk 0:01:08]} 24. Re1 {[%clk 0:00:50]}  Qc2 {[%clk 0:01:02]} 25. Ba1 {[%clk 0:00:45]}  Qxa2 {[%clk 0:00:58]} 26. Qf1 {[%clk 0:00:32]}  Rd2 {[%clk 0:00:51]} 27. Bc3 {[%clk 0:00:24]}  Rc2 {[%clk 0:00:43]} 28. Qd3 {[%clk 0:00:22]}  g6 {[%clk 0:00:21]} 29. Qd8+ {[%clk 0:00:20]}  Kg7 {[%clk 0:00:21]} 30. Qf6+ {[%clk 0:00:15]}  Kg8 {[%clk 0:00:15]} 31. Qd8+ {[%clk 0:00:13]}  Kg7 {[%clk 0:00:15]} 32. e6+ {[%clk 0:00:14]}  Rxc3 {[%clk 0:00:14]} 33. exf7 {[%clk 0:00:11]}  Kxf7 {[%clk 0:00:12]} 34. Re7+ {[%clk 0:00:07]}  Kf6 {[%clk 0:00:11]} 35. Qd6+ {[%clk 0:00:06]}  Kg5 {[%clk 0:00:09]} 36. Qf4+ {[%clk 0:00:06]}  Kh5 {[%clk 0:00:08]} 37. Re5+ {[%clk 0:00:06]}  Bf5 {[%clk 0:00:09]} 38. Bf3+ {[%clk 0:00:06]}  Rxf3 {[%clk 0:00:09]} 39. Qxf3+ {[%clk 0:00:06]}  Kh6 {[%clk 0:00:09]} 40. Qf4+ {[%clk 0:00:06]}  Kg7 {[%clk 0:00:09]} 41. Qd4 {[%clk 0:00:04]}  Qb1+ {[%clk 0:00:08]} 42. Re1+ {[%clk 0:00:04]}  Kh6 {[%clk 0:00:06]} 43. Rxb1 {[%clk 0:00:04]}  Bxb1 {[%clk 0:00:06]} 44. Qf4+ {[%clk 0:00:04]}  g5 {[%clk 0:00:05]} 45. Qc7 {[%clk 0:00:05]}  Bg6 {[%clk 0:00:05]} 46. Qxa7 {[%clk 0:00:05]}  g4 {[%clk 0:00:05]} 47. Qxb6 {[%clk 0:00:05]}  Kh5 {[%clk 0:00:05]} 48. c5 {[%clk 0:00:06]}  h6 {[%clk 0:00:05]} 49. c6 {[%clk 0:00:06]}  Be4+ {[%clk 0:00:05]} 50. Kg1 {[%clk 0:00:06]}  Kg5 {[%clk 0:00:05]} 51. c7 {[%clk 0:00:06]}  Bf3 {[%clk 0:00:06]} 52. Qe3+ {[%clk 0:00:06]}  Kh5 {[%clk 0:00:06]} 53. Qxf3 {[%clk 0:00:06]}  gxf3 {[%clk 0:00:06]} 54. c8=Q {[%clk 0:00:06]}  f2+ {[%clk 0:00:06]} 55. Kxf2 {[%clk 0:00:06]}  Kg5 {[%clk 0:00:06]} 56. Qc5+ {[%clk 0:00:05]}  Kg4 {[%clk 0:00:06]} 57. Qd4+ {[%clk 0:00:05]}  Kh3 {[%clk 0:00:06]} 58. Qh4# {[%clk 0:00:05]} 1-0


[Site "https://www.chess.com"]

[Event "Titled Tuesday Blitz March 08 Early 2022"]
[White "Mohammad Fahad, Rahman"]
[Black "Kanyamarala, Tarun"]
[WhiteFideId "10207791"]
[BlackFideId "45004714"]
[WhiteElo "2323"]
[BlackElo "2075"]
[Result "1-0"]
[Round "10"]
[TimeControl "180+1"]
[Date "2022.03.09"]
[WhiteClock "0:00:08"]
[BlackClock "0:00:14"]

1. Nf3 {[%clk 0:03:00]}  f5 {[%clk 0:02:55]} 2. b3 {[%clk 0:03:00]}  Nf6 {[%clk 0:02:54]} 3. Bb2 {[%clk 0:03:00]}  e6 {[%clk 0:02:54]} 4. c4 {[%clk 0:03:01]}  Be7 {[%clk 0:02:54]} 5. Nc3 {[%clk 0:03:02]}  O-O {[%clk 0:02:51]} 6. g3 {[%clk 0:03:01]}  d6 {[%clk 0:02:50]} 7. Bg2 {[%clk 0:03:01]}  e5 {[%clk 0:02:51]} 8. d3 {[%clk 0:03:01]}  Qe8 {[%clk 0:02:48]} 9. O-O {[%clk 0:03:01]}  Qh5 {[%clk 0:02:44]} 10. Rc1 {[%clk 0:03:01]}  f4 {[%clk 0:02:41]} 11. Nd5 {[%clk 0:03:00]}  Bd8 {[%clk 0:02:37]} 12. Nxf6+ {[%clk 0:02:55]}  Rxf6 {[%clk 0:02:36]} 13. c5 {[%clk 0:02:54]}  Nc6 {[%clk 0:02:31]} 14. cxd6 {[%clk 0:02:51]}  cxd6 {[%clk 0:02:30]} 15. d4 {[%clk 0:02:26]}  e4 {[%clk 0:02:18]} 16. d5 {[%clk 0:02:26]}  Rh6 {[%clk 0:01:47]} 17. h4 {[%clk 0:01:30]}  exf3 {[%clk 0:01:18]} 18. Bxf3 {[%clk 0:01:28]}  Qg6 {[%clk 0:01:18]} 19. h5 {[%clk 0:01:13]}  Qg5 {[%clk 0:00:56]} 20. dxc6 {[%clk 0:01:13]}  bxc6 {[%clk 0:00:53]} 21. Rxc6 {[%clk 0:01:01]}  Be6 {[%clk 0:00:45]} 22. Qxd6 {[%clk 0:00:24]}  fxg3 {[%clk 0:00:19]} 23. Qxg3 {[%clk 0:00:25]}  Qxg3+ {[%clk 0:00:17]} 24. fxg3 {[%clk 0:00:26]}  Bb6+ {[%clk 0:00:17]} 25. Rxb6 {[%clk 0:00:19]}  axb6 {[%clk 0:00:17]} 26. Bxa8 {[%clk 0:00:19]}  Rxh5 {[%clk 0:00:17]} 27. Bf3 {[%clk 0:00:17]}  Ra5 {[%clk 0:00:16]} 28. Ra1 {[%clk 0:00:16]}  Rc5 {[%clk 0:00:16]} 29. Rc1 {[%clk 0:00:15]}  Ra5 {[%clk 0:00:16]} 30. Rc7 {[%clk 0:00:08]}  Rxa2 {[%clk 0:00:15]} 31. Rxg7+ {[%clk 0:00:08]}  Kf8 {[%clk 0:00:16]} 32. Be5 {[%clk 0:00:07]}  Ra5 {[%clk 0:00:14]} 33. Rg5 {[%clk 0:00:07]}  h6 {[%clk 0:00:14]} 34. Bd6+ {[%clk 0:00:08]}  Kf7 {[%clk 0:00:13]} 35. Rxa5 {[%clk 0:00:08]}  bxa5 {[%clk 0:00:13]} 36. Bc7 {[%clk 0:00:09]}  Bc4 {[%clk 0:00:14]} 37. bxc4 {[%clk 0:00:08]} 1-0


[Site "https://www.chess.com"]

[Event "Titled Tuesday Blitz March 08 Early 2022"]
[White "Morefield, Jason"]
[Black "Moskvin, Anatoly"]
[WhiteFideId "30920825"]
[BlackFideId "24199990"]
[WhiteElo "2171"]
[BlackElo "2079"]
[Result "1-0"]
[Round "10"]
[TimeControl "180+1"]
[Date "2022.03.09"]
[WhiteClock "0:00:50"]
[BlackClock "0:00:04"]

1. d4 {[%clk 0:03:00]}  Nf6 {[%clk 0:02:56]} 2. c4 {[%clk 0:03:01]}  c5 {[%clk 0:02:57]} 3. d5 {[%clk 0:03:01]}  b5 {[%clk 0:02:57]} 4. cxb5 {[%clk 0:03:01]}  a6 {[%clk 0:02:58]} 5. bxa6 {[%clk 0:03:01]}  Bxa6 {[%clk 0:02:59]} 6. Nc3 {[%clk 0:03:02]}  g6 {[%clk 0:02:59]} 7. e4 {[%clk 0:03:02]}  Bxf1 {[%clk 0:03:00]} 8. Kxf1 {[%clk 0:03:03]}  d6 {[%clk 0:03:00]} 9. Nf3 {[%clk 0:03:04]}  Bg7 {[%clk 0:03:01]} 10. g3 {[%clk 0:03:04]}  O-O {[%clk 0:03:01]} 11. Kg2 {[%clk 0:03:05]}  Nbd7 {[%clk 0:03:02]} 12. a4 {[%clk 0:03:05]}  Qb6 {[%clk 0:02:58]} 13. Qc2 {[%clk 0:03:02]}  Qb7 {[%clk 0:02:31]} 14. Rd1 {[%clk 0:03:01]}  Ng4 {[%clk 0:02:30]} 15. Ra3 {[%clk 0:02:59]}  f5 {[%clk 0:02:26]} 16. Ng5 {[%clk 0:02:53]}  Bxc3 {[%clk 0:02:09]} 17. Rxc3 {[%clk 0:02:53]}  fxe4 {[%clk 0:02:09]} 18. Qxe4 {[%clk 0:02:47]}  Nge5 {[%clk 0:02:00]} 19. Qh4 {[%clk 0:02:35]}  Nf6 {[%clk 0:01:50]} 20. Bf4 {[%clk 0:02:28]}  Rxa4 {[%clk 0:01:29]} 21. Qh3 {[%clk 0:02:11]}  Neg4 {[%clk 0:01:24]} 22. Rf3 {[%clk 0:01:56]}  h5 {[%clk 0:01:14]} 23. Rfd3 {[%clk 0:01:42]}  e5 {[%clk 0:00:53]} 24. Bc1 {[%clk 0:01:37]}  Nxd5 {[%clk 0:00:42]} 25. Kg1 {[%clk 0:01:26]}  Rd4 {[%clk 0:00:33]} 26. Rxd4 {[%clk 0:01:18]}  cxd4 {[%clk 0:00:34]} 27. Qg2 {[%clk 0:01:15]}  Qb3 {[%clk 0:00:22]} 28. Rf1 {[%clk 0:01:08]}  Ndf6 {[%clk 0:00:10]} 29. h3 {[%clk 0:01:00]}  Nh6 {[%clk 0:00:05]} 30. Qc6 {[%clk 0:01:00]}  Qd5 {[%clk 0:00:02]} 31. Qxd5+ {[%clk 0:00:50]}  Nxd5 {[%clk 0:00:03]} 32. Ne4 {[%clk 0:00:50]}  Nf5 {[%clk 0:00:03]} 33. g4 {[%clk 0:00:50]}  hxg4 {[%clk 0:00:04]} 34. hxg4 {[%clk 0:00:51]}  Nh4 {[%clk 0:00:04]} 35. Nxd6 {[%clk 0:00:50]}  Nf3+ {[%clk 0:00:05]} 36. Kg2 {[%clk 0:00:50]}  Nf4+ {[%clk 0:00:02]} 37. Kxf3 {[%clk 0:00:49]}  Nd3+ {[%clk 0:00:01]} 38. Ke4 {[%clk 0:00:49]}  Nxc1 {[%clk 0:00:02]} 39. Rxc1 {[%clk 0:00:49]}  Rxf2 {[%clk 0:00:03]} 40. Kxe5 {[%clk 0:00:49]}  Rxb2 {[%clk 0:00:03]} 41. Ne4 {[%clk 0:00:48]}  Rg2 {[%clk 0:00:04]} 42. g5 {[%clk 0:00:48]}  d3 {[%clk 0:00:04]} 43. Rd1 {[%clk 0:00:48]}  d2 {[%clk 0:00:03]} 44. Rxd2 {[%clk 0:00:49]}  Rxg5+ {[%clk 0:00:03]} 45. Nxg5 {[%clk 0:00:48]}  Kg7 {[%clk 0:00:03]} 46. Rd7+ {[%clk 0:00:49]}  Kh6 {[%clk 0:00:04]} 47. Kf4 {[%clk 0:00:49]}  Kh5 {[%clk 0:00:04]} 48. Rh7# {[%clk 0:00:50]} 1-0


[Site "https://www.chess.com"]

[Event "Titled Tuesday Blitz March 08 Early 2022"]
[White "Murzin, Volodar"]
[Black "Matlakov, Maxim"]
[WhiteFideId "44155573"]
[BlackFideId "4168003"]
[WhiteElo "2585"]
[BlackElo "2669"]
[Result "0-1"]
[Round "10"]
[TimeControl "180+1"]
[Date "2022.03.08"]
[WhiteClock "0:00:07"]
[BlackClock "0:00:02"]

1. e4 {[%clk 0:02:59]}  c5 {[%clk 0:03:00]} 2. Nf3 {[%clk 0:02:55]}  e6 {[%clk 0:03:00]} 3. g3 {[%clk 0:02:55]}  Nc6 {[%clk 0:02:59]} 4. Bg2 {[%clk 0:02:54]}  Nf6 {[%clk 0:02:59]} 5. Qe2 {[%clk 0:02:54]}  e5 {[%clk 0:02:59]} 6. Nc3 {[%clk 0:02:53]}  d6 {[%clk 0:02:57]} 7. Nd5 {[%clk 0:02:53]}  Be7 {[%clk 0:02:48]} 8. O-O {[%clk 0:02:49]}  Be6 {[%clk 0:02:47]} 9. Ne1 {[%clk 0:02:47]}  O-O {[%clk 0:02:24]} 10. c3 {[%clk 0:02:46]}  Bxd5 {[%clk 0:02:22]} 11. exd5 {[%clk 0:02:46]}  Nb8 {[%clk 0:02:22]} 12. Nc2 {[%clk 0:02:46]}  Nbd7 {[%clk 0:02:21]} 13. d3 {[%clk 0:02:43]}  Re8 {[%clk 0:02:21]} 14. Ne3 {[%clk 0:02:40]}  b5 {[%clk 0:02:19]} 15. a4 {[%clk 0:02:40]}  a6 {[%clk 0:02:19]} 16. Bd2 {[%clk 0:02:36]}  Qb6 {[%clk 0:02:10]} 17. b4 {[%clk 0:02:30]}  Bf8 {[%clk 0:01:48]} 18. Rfb1 {[%clk 0:02:25]}  e4 {[%clk 0:01:43]} 19. dxe4 {[%clk 0:02:22]}  Nxe4 {[%clk 0:01:41]} 20. Bxe4 {[%clk 0:02:21]}  Rxe4 {[%clk 0:01:40]} 21. axb5 {[%clk 0:02:22]}  cxb4 {[%clk 0:01:14]} 22. cxb4 {[%clk 0:02:00]}  Ne5 {[%clk 0:01:14]} 23. bxa6 {[%clk 0:01:46]}  g6 {[%clk 0:01:07]} 24. b5 {[%clk 0:01:41]}  Bh6 {[%clk 0:01:04]} 25. Ba5 {[%clk 0:01:25]}  Qd4 {[%clk 0:01:04]} 26. Rd1 {[%clk 0:01:16]}  Qc5 {[%clk 0:01:02]} 27. Rdc1 {[%clk 0:00:58]}  Rxe3 {[%clk 0:00:56]} 28. Rxc5 {[%clk 0:00:26]}  Rxe2 {[%clk 0:00:56]} 29. Rc7 {[%clk 0:00:26]}  Rb2 {[%clk 0:00:48]} 30. Rb7 {[%clk 0:00:26]}  Nc4 {[%clk 0:00:08]} 31. a7 {[%clk 0:00:20]}  Rxa7 {[%clk 0:00:03]} 32. Rb8+ {[%clk 0:00:18]}  Bf8 {[%clk 0:00:01]} 33. Rc1 {[%clk 0:00:06]}  Nxa5 {[%clk 0:00:01]} 34. Rcc8 {[%clk 0:00:06]}  Kg7 {[%clk 0:00:01]} 35. Rxf8 {[%clk 0:00:06]}  Rb1+ {[%clk 0:00:02]} 36. Kg2 {[%clk 0:00:07]}  Nc4 {[%clk 0:00:03]} 37. Rg8+ {[%clk 0:00:06]}  Kf6 {[%clk 0:00:02]} 38. h4 {[%clk 0:00:07]}  Ra5 {[%clk 0:00:02]} 39. g4 {[%clk 0:00:07]}  Raxb5 {[%clk 0:00:02]} 40. Rbe8 {[%clk 0:00:08]}  Rxd5 {[%clk 0:00:02]} 41. g5+ {[%clk 0:00:07]}  Kf5 {[%clk 0:00:02]} 42. Rg7 {[%clk 0:00:08]}  Ne5 {[%clk 0:00:02]} 43. Rxh7 {[%clk 0:00:07]}  Rd4 {[%clk 0:00:02]} 0-1


[Site "https://www.chess.com"]

[Event "Titled Tuesday Blitz March 08 Early 2022"]
[White "Neiksans, Arturs"]
[Black "Moroni, Luca Jr"]
[WhiteFideId "11601388"]
[BlackFideId "865834"]
[WhiteElo "2447"]
[BlackElo "2573"]
[Result "1-0"]
[Round "10"]
[TimeControl "180+1"]
[Date "2022.03.08"]
[WhiteClock "0:00:23"]
[BlackClock "0:00:02"]

1. e4 {[%clk 0:02:54]}  d6 {[%clk 0:03:00]} 2. d4 {[%clk 0:02:54]}  e5 {[%clk 0:03:01]} 3. dxe5 {[%clk 0:02:51]}  dxe5 {[%clk 0:03:02]} 4. Qxd8+ {[%clk 0:02:51]}  Kxd8 {[%clk 0:03:02]} 5. Bc4 {[%clk 0:02:51]}  f6 {[%clk 0:03:02]} 6. f4 {[%clk 0:02:45]}  Bd6 {[%clk 0:02:57]} 7. fxe5 {[%clk 0:02:43]}  Bxe5 {[%clk 0:02:56]} 8. Nf3 {[%clk 0:02:43]}  Nc6 {[%clk 0:02:52]} 9. Nxe5 {[%clk 0:02:27]}  Nxe5 {[%clk 0:02:50]} 10. Bb3 {[%clk 0:02:27]}  Ne7 {[%clk 0:02:49]} 11. Nc3 {[%clk 0:02:25]}  c6 {[%clk 0:02:49]} 12. Bf4 {[%clk 0:02:24]}  Kc7 {[%clk 0:02:48]} 13. Bxe5+ {[%clk 0:02:23]}  fxe5 {[%clk 0:02:49]} 14. O-O {[%clk 0:02:22]}  Ng6 {[%clk 0:02:24]} 15. Rf7+ {[%clk 0:02:20]}  Kb6 {[%clk 0:02:15]} 16. Rxg7 {[%clk 0:02:12]}  Nf4 {[%clk 0:02:11]} 17. Rd1 {[%clk 0:02:03]}  h5 {[%clk 0:02:05]} 18. h4 {[%clk 0:02:01]}  Bg4 {[%clk 0:01:59]} 19. Rd2 {[%clk 0:01:41]}  Rad8 {[%clk 0:01:33]} 20. Rf2 {[%clk 0:01:02]}  Ka6 {[%clk 0:01:24]} 21. Re7 {[%clk 0:00:58]}  Rhe8 {[%clk 0:01:01]} 22. Bc4+ {[%clk 0:00:55]}  b5 {[%clk 0:00:57]} 23. Rxe8 {[%clk 0:00:56]}  Rxe8 {[%clk 0:00:58]} 24. Bf1 {[%clk 0:00:55]}  Rd8 {[%clk 0:00:54]} 25. a4 {[%clk 0:00:53]}  Bd7 {[%clk 0:00:44]} 26. Rd2 {[%clk 0:00:51]}  Kb6 {[%clk 0:00:37]} 27. axb5 {[%clk 0:00:51]}  Kc7 {[%clk 0:00:32]} 28. g3 {[%clk 0:00:46]}  Rg8 {[%clk 0:00:28]} 29. Kh2 {[%clk 0:00:46]}  Ne6 {[%clk 0:00:26]} 30. Bh3 {[%clk 0:00:42]}  Nd4 {[%clk 0:00:26]} 31. Rf2 {[%clk 0:00:35]}  Bxh3 {[%clk 0:00:26]} 32. Kxh3 {[%clk 0:00:35]}  cxb5 {[%clk 0:00:27]} 33. Nd5+ {[%clk 0:00:35]}  Kd6 {[%clk 0:00:21]} 34. c3 {[%clk 0:00:35]}  Ne6 {[%clk 0:00:19]} 35. Rf6 {[%clk 0:00:33]}  a5 {[%clk 0:00:15]} 36. Rh6 {[%clk 0:00:33]}  Rf8 {[%clk 0:00:10]} 37. Nf6 {[%clk 0:00:27]}  Rf7 {[%clk 0:00:03]} 38. Kg2 {[%clk 0:00:25]}  a4 {[%clk 0:00:02]} 39. Nxh5 {[%clk 0:00:25]}  Kc5 {[%clk 0:00:01]} 40. Rxe6 {[%clk 0:00:25]}  Kc4 {[%clk 0:00:02]} 41. Rxe5 {[%clk 0:00:25]}  Rd7 {[%clk 0:00:02]} 42. Rd5 {[%clk 0:00:23]}  Re7 {[%clk 0:00:01]} 43. Kf3 {[%clk 0:00:23]}  Kb3 {[%clk 0:00:01]} 44. Rxb5+ {[%clk 0:00:23]}  Ka2 {[%clk 0:00:02]} 45. Rb4 {[%clk 0:00:23]}  Rf7+ {[%clk 0:00:02]} 46. Nf4 {[%clk 0:00:23]} 1-0


[Site "https://www.chess.com"]

[Event "Titled Tuesday Blitz March 08 Early 2022"]
[White "Nguyen Hong Nhung"]
[Black "Dwilewicz, Katarzyna"]
[WhiteFideId "12412201"]
[BlackFideId "1148486"]
[WhiteElo "1661"]
[BlackElo "1907"]
[Result "1-0"]
[Round "10"]
[TimeControl "180+1"]
[Date "2022.03.09"]
[WhiteClock "0:01:51"]
[BlackClock "0:00:03"]

1. e4 {[%clk 0:03:00]}  c5 {[%clk 0:02:54]} 2. Nc3 {[%clk 0:03:00]}  d6 {[%clk 0:02:54]} 3. f4 {[%clk 0:03:00]}  g6 {[%clk 0:02:52]} 4. Nf3 {[%clk 0:03:00]}  Bg7 {[%clk 0:02:53]} 5. Bc4 {[%clk 0:03:01]}  e6 {[%clk 0:02:50]} 6. O-O {[%clk 0:03:01]}  Ne7 {[%clk 0:02:51]} 7. d3 {[%clk 0:03:01]}  Nbc6 {[%clk 0:02:50]} 8. Qe1 {[%clk 0:03:02]}  a6 {[%clk 0:02:49]} 9. a4 {[%clk 0:03:01]}  O-O {[%clk 0:02:45]} 10. f5 {[%clk 0:03:02]}  d5 {[%clk 0:02:42]} 11. Ba2 {[%clk 0:03:01]}  d4 {[%clk 0:02:31]} 12. Ne2 {[%clk 0:02:59]}  exf5 {[%clk 0:02:29]} 13. Qh4 {[%clk 0:02:57]}  h5 {[%clk 0:01:48]} 14. Bg5 {[%clk 0:02:55]}  fxe4 {[%clk 0:01:37]} 15. dxe4 {[%clk 0:02:52]}  Bg4 {[%clk 0:01:25]} 16. Nf4 {[%clk 0:02:50]}  Qd7 {[%clk 0:01:14]} 17. h3 {[%clk 0:02:42]}  Bxf3 {[%clk 0:01:11]} 18. Rxf3 {[%clk 0:02:43]}  Rae8 {[%clk 0:00:45]} 19. Raf1 {[%clk 0:02:40]}  b5 {[%clk 0:00:44]} 20. axb5 {[%clk 0:02:37]}  axb5 {[%clk 0:00:43]} 21. Nxh5 {[%clk 0:02:28]}  gxh5 {[%clk 0:00:40]} 22. Bxf7+ {[%clk 0:02:25]}  Rxf7 {[%clk 0:00:31]} 23. Rxf7 {[%clk 0:02:26]}  Ne5 {[%clk 0:00:25]} 24. Rxg7+ {[%clk 0:02:25]}  Kxg7 {[%clk 0:00:22]} 25. Bf6+ {[%clk 0:02:26]}  Kg8 {[%clk 0:00:19]} 26. Bxe5 {[%clk 0:02:16]}  Ng6 {[%clk 0:00:18]} 27. Qg5 {[%clk 0:02:15]}  Rxe5 {[%clk 0:00:13]} 28. Qxg6+ {[%clk 0:02:15]}  Qg7 {[%clk 0:00:13]} 29. Qc6 {[%clk 0:02:13]}  Rg5 {[%clk 0:00:07]} 30. Rf2 {[%clk 0:02:11]}  Kh7 {[%clk 0:00:07]} 31. Qxb5 {[%clk 0:02:08]}  h4 {[%clk 0:00:04]} 32. Qd3 {[%clk 0:02:08]}  Kh6 {[%clk 0:00:03]} 33. Qa6+ {[%clk 0:02:05]}  Rg6 {[%clk 0:00:03]} 34. Qb5 {[%clk 0:02:05]}  Rg5 {[%clk 0:00:03]} 35. Qc6+ {[%clk 0:02:05]}  Kh5 {[%clk 0:00:02]} 36. Qe8+ {[%clk 0:02:05]}  Kh6 {[%clk 0:00:02]} 37. Qe6+ {[%clk 0:02:04]}  Kh5 {[%clk 0:00:02]} 38. Kh1 {[%clk 0:01:59]}  Rg6 {[%clk 0:00:01]} 39. Qf5+ {[%clk 0:01:56]}  Rg5 {[%clk 0:00:02]} 40. Qc8 {[%clk 0:01:54]}  Kh6 {[%clk 0:00:01]} 41. Qc6+ {[%clk 0:01:52]}  Kh5 {[%clk 0:00:01]} 42. b3 {[%clk 0:01:49]}  Rg6 {[%clk 0:00:01]} 43. Qxc5+ {[%clk 0:01:49]}  Rg5 {[%clk 0:00:01]} 44. Qc4 {[%clk 0:01:49]}  Kh6 {[%clk 0:00:02]} 45. Qe2 {[%clk 0:01:48]}  Kh7 {[%clk 0:00:01]} 46. Rf4 {[%clk 0:01:48]}  Rg3 {[%clk 0:00:02]} 47. Rxh4+ {[%clk 0:01:49]}  Kg8 {[%clk 0:00:02]} 48. Rg4 {[%clk 0:01:49]}  Rxg4 {[%clk 0:00:02]} 49. Qxg4 {[%clk 0:01:50]}  Qxg4 {[%clk 0:00:02]} 50. hxg4 {[%clk 0:01:51]}  Kf7 {[%clk 0:00:03]} 51. Kg1 {[%clk 0:01:51]}  Ke7 {[%clk 0:00:03]} 52. Kf2 {[%clk 0:01:51]} 1-0


[Site "https://www.chess.com"]